bitfinex-derivatives/quotes_BTCF0:USTF0_20250919
["timestamp","ask_amount","ask_price","bid_price","bid_amount"]
[1758313714174,0.48334588,115470.0,115460.0,0.70088961]
[1758313714476,0.0997288,115460.0,115450.0,1.3609]
[1758313714775,0.77990802,115460.0,115450.0,2.48952961]
[1758313715375,0.43981841,115460.0,115450.0,2.48952961]
[1758313715875,0.4401399,115460.0,115450.0,2.14944]
[1758313716478,0.4401399,115460.0,115450.0,2.15044]
[1758313717178,0.4411399,115460.0,115450.0,2.15044]
[1758313717377,0.4411399,115460.0,115450.0,2.14944]
[1758313717676,0.4441399,115460.0,115450.0,2.14944]
[1758313723378,0.4441399,115460.0,115450.0,1.3608]
[1758313723579,0.4441399,115460.0,115450.0,2.1494]
[1758313726483,0.1037288,115460.0,115450.0,2.1494]
[1758313726985,0.4441399,115460.0,115450.0,2.1494]
[1758313727175,0.1037288,115460.0,115450.0,2.4898111]
[1758313735086,0.1037288,115460.0,115450.0,1.7012111]
[1758313735300,0.4441399,115460.0,115450.0,2.4896511]
[1758313735586,0.4441399,115460.0,115450.0,2.14924]
[1758313738489,0.4441399,115460.0,115450.0,2.1492]
[1758313738999,0.4441399,115460.0,115450.0,1.3608]
[1758313739200,0.4441399,115460.0,115450.0,2.14916]
[1758313744303,0.1037288,115460.0,115450.0,2.14916]
[1758313744500,0.4441399,115460.0,115450.0,2.14916]
[1758313746505,0.4441399,115460.0,115450.0,1.3608]
[1758313746696,0.4441399,115460.0,115450.0,2.14908]
[1758313749098,0.4441399,115460.0,115450.0,2.14904]
[1758313749900,0.4441399,115460.0,115450.0,1.3608]
[1758313751196,1.2323399,115460.0,115450.0,1.3608]
[1758313751395,1.2319399,115460.0,115450.0,1.3608]
[1758313757307,0.4437399,115460.0,115450.0,1.3608]
[1758313757510,1.2318599,115460.0,115450.0,1.3608]
[1758313758501,0.8914488,115460.0,115450.0,1.3608]
[1758313758702,1.2318599,115460.0,115450.0,1.3608]
[1758313758907,0.8914488,115460.0,115450.0,1.3608]
[1758313759109,1.2318599,115460.0,115450.0,1.3608]
[1758313759797,0.4437399,115460.0,115450.0,1.3608]
[1758313760003,1.2317799,115460.0,115450.0,1.3608]
[1758313760507,0.8913688,115460.0,115450.0,1.3608]
[1758313763912,1.2317799,115460.0,115450.0,1.3608]
[1758313768014,1.2317799,115460.0,115450.0,1.0]
[1758313768206,1.2317799,115460.0,115450.0,1.3608]
[1758313776723,0.8913688,115460.0,115450.0,1.3608]
[1758313777020,1.2317799,115460.0,115450.0,1.3608]
[1758313777718,1.23177845,115460.0,115450.0,1.70120965]
[1758313777922,1.23149845,115460.0,115450.0,1.70120965]
[1758313778323,0.8910888,115460.0,115450.0,1.70120965]
[1758313778525,1.23149845,115460.0,115450.0,1.70120965]
[1758313783622,1.23149845,115460.0,115450.0,1.34040965]
[1758313783922,1.23149845,115460.0,115450.0,1.70120965]
[1758313786729,0.44373845,115460.0,115450.0,1.70120965]
[1758313786920,1.23133845,115460.0,115450.0,1.70120965]
[1758313788331,1.23133845,115460.0,115450.0,1.3608]
[1758313788527,1.23133845,115460.0,115450.0,1.70120965]
[1758313789130,1.23133845,115460.0,115450.0,1.3608]
[1758313789327,1.23133845,115460.0,115450.0,1.70120965]
[1758313793126,1.23125845,115460.0,115450.0,1.70120965]
[1758313793735,0.44373845,115460.0,115450.0,1.70120965]
[1758313794329,0.0901588,115460.0,115450.0,2.0546893]
[1758313794835,0.0901588,115460.0,115450.0,2.6654893]
[1758313798231,0.0901588,115460.0,115450.0,2.73355757]
[1758313800436,0.0901588,115460.0,115450.0,3.52091757]
[1758313800634,0.0901588,115460.0,115450.0,3.60748407]
[1758313801338,0.0901588,115460.0,115450.0,2.82012407]
[1758313801636,0.0901588,115460.0,115450.0,3.60744407]
[1758313803638,0.0901588,115460.0,115450.0,2.73355757]
[1758313803840,0.0901588,115460.0,115450.0,3.52087757]
[1758313808843,0.0901588,115460.0,115450.0,3.52075757]
[1758313809045,0.0901588,115460.0,115450.0,2.73355757]
[1758313809246,0.0901588,115460.0,115450.0,3.52075757]
[1758313810233,0.0901588,115460.0,115450.0,3.18034792]
[1758313810438,0.43056845,115460.0,115450.0,2.39314792]
[1758313810739,0.43056845,115460.0,115450.0,2.93034792]
[1758313811746,0.43056845,115460.0,115450.0,2.14314792]
[1758313811941,0.43056845,115460.0,115450.0,2.93030792]
[1758313812942,0.43056845,115460.0,115450.0,2.14314792]
[1758313813244,0.43056845,115460.0,115450.0,2.93026792]
[1758313815948,0.43056845,115460.0,115450.0,2.14314792]
[1758313816146,0.43056845,115460.0,115450.0,2.93022792]
[1758313816850,0.43056845,115460.0,115450.0,2.14314792]
[1758313817048,0.43056845,115460.0,115450.0,2.93022792]
[1758313817548,0.43056845,115460.0,115450.0,2.14314792]
[1758313817850,0.43056845,115460.0,115450.0,2.93018792]
[1758313818538,0.0901588,115460.0,115450.0,2.93018792]
[1758313818735,0.43056845,115460.0,115450.0,2.93018792]
[1758313819844,0.43056845,115460.0,115450.0,2.56938792]
[1758313823252,0.0901588,115460.0,115450.0,2.56938792]
[1758313823954,0.43056845,115460.0,115450.0,2.56938792]
[1758313824462,0.0901588,115460.0,115450.0,2.56938792]
[1758313824745,0.0901588,115460.0,115450.0,2.99636407]
[1758313825251,0.0901588,115460.0,115450.0,2.90979757]
[1758313831259,0.0901588,115460.0,115450.0,2.90959757]
[1758313831461,0.0901588,115460.0,115450.0,2.12275757]
[1758313831658,0.0901588,115460.0,115450.0,2.90959757]
[1758313835763,0.0901588,115460.0,115450.0,2.90951757]
[1758313837264,0.0901588,115460.0,115450.0,2.22869827]
[1758313837665,0.0901588,115460.0,115450.0,2.90951757]
[1758313837865,0.0901588,115460.0,115450.0,2.56897263]
[1758313839465,0.0901588,115460.0,115450.0,2.56893263]
[1758313840671,0.0901588,115460.0,115450.0,2.67779162]
[1758313841566,0.0901588,115460.0,115450.0,2.56893263]
[1758313841767,0.0901588,115460.0,115450.0,1.78221263]
[1758313842066,0.0901588,115460.0,115450.0,2.56889263]
[1758313842367,0.0901588,115460.0,115450.0,1.78221263]
[1758313842566,0.0901588,115460.0,115450.0,2.56889263]
[1758313844071,0.0901588,115460.0,115450.0,1.78221263]
[1758313844270,0.0901588,115460.0,115450.0,2.56885263]
[1758313847771,0.0901588,115460.0,115450.0,2.67771162]
[1758313848270,0.0901588,115460.0,115450.0,2.56885263]
[1758313860488,0.0901588,115460.0,115450.0,1.78221263]
[1758313860688,0.0901588,115460.0,115450.0,2.56865263]
[1758313863188,0.0901588,115460.0,115450.0,1.78221263]
[1758313863486,0.0901588,115460.0,115450.0,2.56861263]
[1758313866188,0.0901588,115460.0,115450.0,2.22833827]
[1758313866391,0.0901588,115460.0,115450.0,2.56861263]
[1758313866592,0.0901588,115460.0,115450.0,1.78221263]
[1758313866789,0.1037488,115460.0,115450.0,2.21522827]
[1758313867095,0.44402316,115460.0,115450.0,2.21522827]
[1758313867592,0.44402316,115460.0,115450.0,1.42886827]
[1758313867788,0.44402316,115460.0,115450.0,2.21522827]
[1758313868491,0.44402316,115460.0,115450.0,2.22806827]
[1758313868892,0.1037488,115460.0,115450.0,2.22806827]
[1758313869279,0.1037488,115460.0,115450.0,2.56834263]
[1758313869993,0.0901588,115460.0,115450.0,2.56834263]
[1758313871194,0.0901588,115460.0,115450.0,2.22806827]
[1758313871395,0.0901588,115460.0,115450.0,1.44170827]
[1758313871586,0.0901588,115460.0,115450.0,2.22802827]
[1758313873794,0.0901588,115460.0,115450.0,2.56830263]
[1758313876095,0.0901588,115460.0,115450.0,2.22802827]
[1758313876897,0.0901588,115460.0,115450.0,2.56830263]
[1758313898103,0.69400316,115460.0,115450.0,2.21486827]
[1758313898607,0.69400316,115460.0,115450.0,1.42886827]
[1758313898812,0.69400316,115460.0,115450.0,1.3608]
[1758313899307,0.69400316,115460.0,115450.0,1.0]
[1758313899513,0.44400316,115460.0,115450.0,1.0]
[1758313899910,0.7846881,115460.0,115450.0,1.0]
[1758313900207,1.0346881,115460.0,115450.0,1.0]
[1758313900910,1.3954881,115460.0,115450.0,1.0]
[1758313901309,1.73596775,115460.0,115450.0,1.0]
[1758313901613,1.76099134,115460.0,115450.0,0.9782409]
[1758313901914,1.78285134,115460.0,115450.0,0.9782409]
[1758313902114,1.78285134,115460.0,115450.0,0.1124694]
[1758313902309,1.78285134,115460.0,115450.0,0.033357]
[1758313902504,1.78285134,115460.0,115450.0,1e-07]
[1758313902907,0.1220037,115440.0,115430.0,0.38264]
[1758313903102,0.1220112,115430.0,115420.0,0.3608]
[1758313903309,0.8029705,115430.0,115420.0,0.38254]
[1758313904217,0.46249085,115430.0,115420.0,0.38254]
[1758313904812,1.60542772,115430.0,115420.0,0.02174]
[1758313905018,1.60542772,115430.0,115410.0,0.38254]
[1758313905019,0.1220187,115420.0,115410.0,0.38254]
[1758313905210,0.82054955,115420.0,115410.0,0.38254]
[1758313905515,0.81254955,115420.0,115410.0,0.38254]
[1758313905718,0.81054955,115420.0,115410.0,0.38254]
[1758313907610,0.81154955,115420.0,115410.0,0.38254]
[1758313908214,0.81154955,115420.0,115410.0,0.02174]
[1758313908511,0.121026,115410.0,115400.0,0.39962]
[1758313908717,1.5880653,115410.0,115400.0,0.39962]
[1758313909618,1.5890653,115410.0,115400.0,0.39962]
[1758313909818,1.5900653,115410.0,115400.0,0.39962]
[1758313910517,1.5901053,115410.0,115400.0,0.39962]
[1758313912513,0.8039853,115410.0,115400.0,0.39962]
[1758313912714,1.5901053,115410.0,115400.0,0.39962]
[1758313915617,0.1217734,115400.0,115390.0,1e-07]
[1758313915826,1.9496927,115400.0,115390.0,1e-07]
[1758313916927,1.9496927,115400.0,115390.0,0.0020001]
[1758313917829,1.1635327,115400.0,115390.0,0.0020001]
[1758313918028,1.9496927,115400.0,115390.0,0.0020001]
[1758313922430,1.1635327,115400.0,115390.0,0.0020001]
[1758313922624,1.9497327,115400.0,115390.0,0.0020001]
[1758313923331,1.1635327,115400.0,115390.0,0.0020001]
[1758313923530,1.9497327,115400.0,115390.0,0.0020001]
[1758313925726,0.1217734,115400.0,115390.0,0.0020001]
[1758313926034,1.5888927,115400.0,115390.0,0.3628001]
[1758313928126,0.8027327,115400.0,115390.0,0.3628001]
[1758313928328,1.61387702,115400.0,115390.0,0.3628001]
[1758313928730,1.5889327,115400.0,115390.0,0.3628001]
[1758313929231,1.61389114,115400.0,115390.0,0.3628001]
[1758313932436,1.61385114,115400.0,115390.0,0.3628001]
[1758313935533,0.82769114,115400.0,115390.0,0.0020001]
[1758313935738,1.61381114,115400.0,115390.0,0.0020001]
[1758313937936,0.82769114,115400.0,115390.0,0.0020001]
[1758313938140,1.61381114,115400.0,115390.0,0.0020001]
[1758313941535,0.82769114,115400.0,115390.0,0.0020001]
[1758313941731,1.61381114,115400.0,115390.0,0.0020001]
[1758313942840,0.82769114,115400.0,115390.0,0.0020001]
[1758313943041,1.61381114,115400.0,115390.0,0.0020001]
[1758313943733,0.82769114,115400.0,115390.0,0.0020001]
[1758313943933,1.61381114,115400.0,115390.0,0.0020001]
[1758313949742,1.61381114,115400.0,115390.0,0.0010001]
[1758313950039,1.61381114,115400.0,115390.0,1e-07]
[1758313950245,1.61681114,115400.0,115390.0,1e-07]
[1758313950545,0.1229608,115390.0,115380.0,0.38312]
[1758313950745,0.8039201,115390.0,115380.0,0.38302]
[1758313952244,0.8039201,115390.0,115380.0,0.38502]
[1758313952540,0.8039201,115390.0,115380.0,0.3628]
[1758313953343,0.8039201,115390.0,115380.0,0.38502]
[1758313954148,0.81871,115390.0,115380.0,0.38502]
[1758313956139,0.1229608,115390.0,115380.0,0.38502]
[1758313956441,0.1222834,115400.0,115390.0,0.03522]
[1758313956639,0.1092034,115400.0,115390.0,0.73649965]
[1758313957042,0.44968305,115400.0,115390.0,0.73649965]
[1758313957241,0.46343305,115400.0,115390.0,0.73649965]
[1758313957946,0.46343305,115400.0,115390.0,0.38302]
[1758313958150,0.46343305,115400.0,115390.0,0.72349965]
[1758313958941,0.46643305,115400.0,115390.0,0.72349965]
[1758313959845,0.1259534,115400.0,115390.0,0.72371774]
[1758313961052,0.1122034,115400.0,115390.0,0.73671774]
[1758313979374,0.1122034,115400.0,115390.0,0.39602]
[1758313979876,0.1122034,115400.0,115390.0,0.73671774]
[1758313982880,0.46670114,115400.0,115390.0,0.8081]
[1758313983079,0.73394458,115400.0,115390.0,0.8081]
[1758313983272,0.73394458,115400.0,115390.0,0.02222]
[1758313983583,0.1235008,115390.0,115380.0,1.16968]
[1758313983785,0.46419854,115390.0,115380.0,1.16958]
[1758313984779,0.46419854,115390.0,115380.0,1.17058]
[1758313985087,0.46419854,115390.0,115380.0,1.17158]
[1758313985588,0.46419854,115390.0,115380.0,0.3857]
[1758313986578,0.1235008,115390.0,115380.0,0.3857]
[1758313986883,0.46419854,115390.0,115380.0,0.3857]
[1758313987282,0.1235008,115390.0,115380.0,0.3857]
[1758313987478,0.46419854,115390.0,115380.0,0.3857]
[1758313988189,0.0866108,115390.0,115380.0,0.72639774]
[1758313988685,0.1097008,115390.0,115380.0,0.72639774]
[1758313990187,0.0866108,115390.0,115380.0,0.72639774]
[1758313990578,0.1097008,115390.0,115380.0,0.72639774]
[1758313995890,0.1097008,115390.0,115380.0,0.3857]
[1758313996077,0.1097008,115390.0,115380.0,0.72639774]
[1758314005294,0.1097008,115390.0,115380.0,0.3857]
[1758314005488,0.1097008,115390.0,115380.0,0.72639774]
[1758314016793,0.1097008,115390.0,115380.0,0.3857]
[1758314016994,0.1097008,115390.0,115380.0,0.72639774]
[1758314017495,0.1097008,115390.0,115380.0,1.51215774]
[1758314019204,0.1229008,115390.0,115380.0,1.51215774]
[1758314019400,0.1229008,115390.0,115380.0,0.3857]
[1758314019604,0.46359854,115390.0,115380.0,0.3857]
[1758314021901,0.46370665,115390.0,115380.0,0.72650585]
[1758314022905,0.46370665,115390.0,115380.0,1.51222585]
[1758314028613,0.46370665,115390.0,115380.0,1.51022585]
[1758314028806,0.46870665,115390.0,115380.0,1.51022585]
[1758314029804,0.1279008,115390.0,115380.0,1.51022585]
[1758314029996,0.45550665,115390.0,115380.0,1.51022585]
[1758314030207,0.46870665,115390.0,115380.0,1.51022585]
[1758314031411,0.46870665,115390.0,115380.0,1.51018585]
[1758314035509,0.0916108,115390.0,115380.0,1.8509917]
[1758314039212,0.005,115390.0,115380.0,2.63727484]
[1758314039707,0.005,115390.0,115380.0,2.18761]
[1758314039913,0.005,115390.0,115380.0,2.52841585]
[1758314040911,0.0916108,115390.0,115380.0,2.52841585]
[1758314041111,0.0916108,115390.0,115380.0,1.5059983]
[1758314041311,0.0916108,115390.0,115380.0,2.52841585]
[1758314041709,0.0916108,115390.0,115380.0,2.18761]
[1758314042413,0.005,115390.0,115380.0,2.52841585]
[1758314042610,0.0001,115400.0,115390.0,0.1091908]
[1758314042815,0.0866982,115410.0,115400.0,0.1215633]
[1758314043003,0.0865982,115410.0,115400.0,1.96952761]
[1758314044510,0.0865982,115410.0,115400.0,1.97052761]
[1758314044714,0.0975982,115410.0,115400.0,1.97048761]
[1758314044910,0.1005982,115410.0,115400.0,1.18492761]
[1758314045118,0.1005982,115410.0,115400.0,1.97048761]
[1758314045420,0.1005982,115410.0,115400.0,1.18492761]
[1758314045713,0.1005982,115410.0,115400.0,1.97048761]
[1758314046619,0.1005982,115410.0,115400.0,1.09832431]
[1758314046821,0.46351405,115410.0,115400.0,1.61285442]
[1758314047119,0.47633405,115410.0,115400.0,1.61285442]
[1758314047418,0.1355282,115410.0,115400.0,1.95366027]
[1758314048722,0.1227082,115410.0,115400.0,1.95366027]
[1758314049122,0.1005982,115410.0,115400.0,1.95366027]
[1758314050314,0.1005982,115410.0,115400.0,1.16814027]
[1758314050513,0.1005982,115410.0,115400.0,1.95362027]
[1758314051325,0.1355282,115410.0,115400.0,1.95358027]
[1758314051524,0.1355282,115410.0,115400.0,1.27196857]
[1758314051724,0.1355282,115410.0,115400.0,1.95358027]
[1758314051926,0.1227082,115410.0,115400.0,1.95358027]
[1758314054519,0.1227082,115410.0,115400.0,1.95354027]
[1758314058724,0.1227082,115410.0,115400.0,1.15576027]
[1758314059028,0.1355282,115410.0,115400.0,1.94112027]
[1758314060129,0.47633405,115410.0,115400.0,1.94112027]
[1758314062634,0.1355282,115410.0,115400.0,1.94112027]
[1758314066333,0.47633405,115410.0,115400.0,1.94112027]
[1758314068138,0.47633405,115410.0,115400.0,1.92116766]
[1758314068438,0.49379504,115410.0,115400.0,1.92116766]
[1758314073544,0.15298919,115410.0,115400.0,1.92116766]
[1758314076739,0.15298919,115410.0,115400.0,2.03002665]
[1758314077440,0.11805919,115410.0,115400.0,2.03002665]
[1758314078343,0.11805919,115410.0,115400.0,1.92116766]
[1758314079241,0.11805919,115410.0,115400.0,1.13580766]
[1758314079644,0.11805919,115410.0,115400.0,1.92096766]
[1758314081846,0.11805919,115410.0,115400.0,1.57995088]
[1758314083247,0.13970919,115410.0,115400.0,0.79479088]
[1758314083547,0.15232919,115410.0,115400.0,1.57995088]
[1758314088353,0.13970919,115410.0,115400.0,1.57995088]
[1758314088749,0.11805919,115410.0,115400.0,1.57995088]
[1758314091156,0.11805919,115410.0,115400.0,0.79479088]
[1758314091455,0.11805919,115410.0,115400.0,1.57987088]
[1758314092951,0.11805919,115410.0,115400.0,1.66647418]
[1758314093553,0.11805919,115410.0,115400.0,1.57987088]
[1758314094361,0.11805919,115410.0,115400.0,0.79479088]
[1758314094554,0.11805919,115410.0,115400.0,1.57987088]
[1758314094755,0.13970919,115410.0,115400.0,1.57987088]
[1758314096057,0.13970919,115410.0,115400.0,1.94067088]
[1758314098856,0.11805919,115410.0,115400.0,1.94067088]
[1758314102056,0.11805919,115410.0,115400.0,1.15559088]
[1758314102361,0.11805919,115410.0,115400.0,1.94059088]
[1758314110168,0.1005982,115410.0,115400.0,2.02719418]
[1758314111472,0.1005982,115410.0,115400.0,2.6177891]
[1758314111673,0.014,115410.0,115400.0,2.6177891]
[1758314112369,0.014,115410.0,115400.0,2.72649769]
[1758314112965,0.013,115410.0,115400.0,2.72649769]
[1758314113670,0.007,115410.0,115400.0,2.72549769]
[1758314114869,0.002,115410.0,115400.0,2.72549769]
[1758314116068,0.002,115410.0,115400.0,2.94574839]
[1758314116874,0.002,115410.0,115400.0,3.00084839]
[1758314117074,0.0001,115420.0,115410.0,0.1192361]
[1758314117274,0.0866865,115430.0,115420.0,0.1082286]
[1758314117474,0.0865865,115430.0,115420.0,1.59446352]
[1758314118464,0.0955865,115430.0,115420.0,1.60753016]
[1758314119078,0.0985865,115430.0,115420.0,1.60753016]
[1758314127884,0.0985865,115430.0,115420.0,1.68497636]
[1758314129587,0.0985865,115430.0,115420.0,1.60753016]
[1758314129781,0.0985865,115430.0,115420.0,1.68497636]
[1758314135292,0.0985865,115430.0,115420.0,1.68469636]
[1758314136081,0.0985865,115430.0,115420.0,1.34410144]
[1758314136285,0.0985865,115430.0,115420.0,1.68469636]
[1758314139590,0.0985865,115430.0,115420.0,1.71577926]
[1758314143797,0.0985865,115430.0,115420.0,2.39641578]
[1758314145604,0.0985865,115430.0,115420.0,2.28788668]
[1758314146100,0.0985865,115430.0,115420.0,0.48209524]
[1758314146301,0.0985865,115430.0,115420.0,1.9473562]
[1758314147905,0.0985865,115430.0,115420.0,1.1629162]
[1758314148097,0.0985865,115430.0,115420.0,1.9473562]
[1758314148704,0.0985865,115430.0,115420.0,1.1629162]
[1758314149002,0.0985865,115430.0,115420.0,1.9473562]
[1758314151699,0.0985865,115430.0,115420.0,2.05609909]
[1758314155218,0.012,115430.0,115420.0,2.28776668]
[1758314156019,0.003,115430.0,115420.0,2.28676668]
[1758314156216,0.007,115430.0,115420.0,2.28676668]
[1758314156618,0.006,115430.0,115420.0,2.28676668]
[1758314162420,0.006,115430.0,115420.0,1.50232668]
[1758314162618,0.006,115430.0,115420.0,2.28668668]
[1758314169432,0.006,115430.0,115420.0,2.39538929]
[1758314176834,0.006,115430.0,115420.0,2.30718964]
[1758314177031,0.006,115430.0,115420.0,2.4158645]
[1758314177433,0.006,115430.0,115420.0,2.30718964]
[1758314179039,0.004,115430.0,115420.0,2.30718964]
[1758314179935,0.0001,115440.0,115420.0,2.39377824]
[1758314180132,0.0001,115440.0,115430.0,1.27175237]
[1758314180333,0.19099229,115450.0,115440.0,0.1091536]
[1758314180334,0.10452029,115450.0,115440.0,0.1091536]
[1758314180535,0.10442029,115450.0,115440.0,2.01256977]
[1758314182746,0.10442029,115450.0,115440.0,1.93501456]
[1758314182944,0.10442029,115450.0,115440.0,2.04360487]
[1758314183250,0.11242029,115450.0,115440.0,2.04360487]
[1758314183546,0.11542029,115450.0,115440.0,2.04360487]
[1758314183743,0.11542029,115450.0,115440.0,2.38401535]
[1758314184849,0.11542029,115450.0,115440.0,2.04360487]
[1758314188957,0.11542029,115450.0,115440.0,2.11431777]
[1758314189450,0.11542029,115450.0,115440.0,2.19184879]
[1758314189846,0.11542029,115450.0,115440.0,2.08325848]
[1758314194953,0.11542029,115450.0,115440.0,1.29901848]
[1758314195148,0.12807029,115450.0,115440.0,1.99656488]
[1758314195355,0.12807029,115450.0,115440.0,2.08313848]
[1758314195653,0.11542029,115450.0,115440.0,2.08313848]
[1758314198057,0.11542029,115450.0,115440.0,1.29901848]
[1758314198258,0.11542029,115450.0,115440.0,2.08313848]
[1758314199957,0.11542029,115450.0,115440.0,1.29901848]
[1758314200157,0.11542029,115450.0,115440.0,2.08313848]
[1758314203868,0.11542029,115450.0,115440.0,1.29901848]
[1758314204068,0.11542029,115450.0,115440.0,2.08309848]
[1758314204369,0.11542029,115450.0,115440.0,2.00556746]
[1758314205870,0.11542029,115450.0,115440.0,2.00540516]
[1758314206370,0.11542029,115450.0,115440.0,2.11399547]
[1758314208766,0.11542029,115450.0,115440.0,1.32991547]
[1758314208971,0.11542029,115450.0,115440.0,1.91879156]
[1758314211477,0.11542029,115450.0,115440.0,2.00536516]
[1758314211676,0.11542029,115450.0,115440.0,2.0830102]
[1758314212178,0.11542029,115450.0,115440.0,1.2989702]
[1758314212378,0.11542029,115450.0,115440.0,2.0830102]
[1758314215681,0.11542029,115450.0,115440.0,1.40235154]
[1758314215882,0.11542029,115450.0,115440.0,2.0830102]
[1758314216378,0.11542029,115450.0,115440.0,1.9963966]
[1758314218789,0.11542029,115450.0,115440.0,1.91875156]
[1758314219388,0.11542029,115450.0,115440.0,1.99639152]
[1758314219989,0.11542029,115450.0,115440.0,2.08296512]
[1758314220990,0.12847029,115450.0,115440.0,2.08296512]
[1758314221789,0.12847029,115450.0,115440.0,1.99639152]
[1758314222586,0.12847029,115450.0,115440.0,1.21239152]
[1758314222890,0.12847029,115450.0,115440.0,1.99639152]
[1758314223092,0.12847029,115450.0,115440.0,1.65606219]
[1758314223288,0.12847029,115450.0,115440.0,0.87206219]
[1758314223586,0.74152962,115450.0,115440.0,0.53173286]
[1758314223797,0.74152962,115450.0,115440.0,0.4315129]
[1758314224094,0.74152962,115450.0,115440.0,1.2155129]
[1758314225492,0.74152962,115450.0,115440.0,0.4525229]
[1758314225692,0.74152962,115450.0,115440.0,1.2366429]
[1758314226891,0.74152962,115450.0,115440.0,1.16593]
[1758314228489,0.74152962,115450.0,115440.0,0.3608]
[1758314229182,0.74152962,115450.0,115440.0,1.14496]
[1758314229582,0.40120029,115450.0,115440.0,1.14496]
[1758314229789,0.74152962,115450.0,115440.0,1.14496]
[1758314238091,0.0865736,115440.0,115430.0,0.43853996]
[1758314238291,0.46268293,115440.0,115430.0,1.24356996]
[1758314238493,0.46268293,115440.0,115430.0,1.16593]
[1758314238988,0.1223536,115440.0,115430.0,1.16593]
[1758314239494,0.46768293,115440.0,115430.0,1.16593]
[1758314240789,0.46968293,115440.0,115430.0,1.16593]
[1758314246606,0.1293536,115440.0,115430.0,1.50625933]
[1758314249905,0.1293536,115440.0,115430.0,1.16593]
[1758314250106,0.1293536,115440.0,115430.0,1.50625933]
[1758314252714,0.1293536,115440.0,115430.0,1.16593]
[1758314252915,0.46968293,115440.0,115430.0,1.16593]
[1758314253714,0.46968293,115440.0,115430.0,0.38181]
[1758314254008,0.46968293,115440.0,115430.0,1.16609]
[1758314254908,0.1293536,115440.0,115430.0,1.16609]
[1758314255107,0.46968293,115440.0,115430.0,1.16609]
[1758314267516,0.46968293,115440.0,115430.0,0.80529]
[1758314267822,0.46985482,115440.0,115430.0,1.50659122]
[1758314272122,0.1293536,115440.0,115430.0,1.50659122]
[1758314272324,0.46985482,115440.0,115430.0,1.50659122]
[1758314277935,0.81035604,115440.0,115430.0,1.16609]
[1758314278132,0.81035604,115440.0,115430.0,1.50659122]
[1758314279539,0.46985482,115440.0,115430.0,1.16609]
[1758314279838,0.46985482,115440.0,115430.0,1.50659122]
[1758314281335,0.46985482,115440.0,115430.0,0.38181]
[1758314281537,0.1216611,115430.0,115420.0,1.16827]
[1758314281840,0.1216686,115420.0,115410.0,0.38415]
[1758314282144,0.46216982,115420.0,115410.0,1.50867122]
[1758314283046,0.46216982,115420.0,115410.0,1.51067122]
[1758314283540,0.46216982,115420.0,115410.0,1.51167122]
[1758314283736,0.1216686,115420.0,115410.0,1.51167122]
[1758314283932,0.46216982,115420.0,115410.0,1.51167122]
[1758314284441,0.1216686,115420.0,115410.0,1.51167122]
[1758314285047,0.1226686,115420.0,115410.0,1.50967122]
[1758314285341,0.1226686,115420.0,115410.0,1.50867122]
[1758314286044,0.46316982,115420.0,115410.0,1.50867122]
[1758314286439,0.46316982,115420.0,115410.0,1.51911383]
[1758314291150,0.46316982,115420.0,115410.0,1.51915383]
[1758314293852,0.46316982,115420.0,115410.0,1.17865261]
[1758314294052,0.1226686,115420.0,115410.0,1.51915383]
[1758314294252,0.46316982,115420.0,115410.0,1.51915383]
[1758314300859,0.46316982,115420.0,115410.0,1.50871122]
[1758314304164,0.1226686,115420.0,115410.0,1.50871122]
[1758314304360,0.46316982,115420.0,115410.0,1.50871122]
[1758314315966,0.1226686,115420.0,115410.0,1.50871122]
[1758314316465,0.001,115420.0,115410.0,2.18580864]
[1758314316674,0.0875887,115420.0,115410.0,2.18580864]
[1758314319272,0.0875887,115420.0,115410.0,1.93580864]
[1758314326378,0.0875887,115420.0,115410.0,2.04439895]
[1758314327780,0.0875887,115420.0,115410.0,2.04431015]
[1758314329373,0.0875887,115420.0,115410.0,1.26015015]
[1758314329582,0.0875887,115420.0,115410.0,2.04427015]
[1758314329878,0.0875887,115420.0,115410.0,1.26015015]
[1758314330075,0.0875887,115420.0,115410.0,2.04427015]
[1758314331379,0.0875887,115420.0,115410.0,2.04423015]
[1758314338286,0.0875887,115420.0,115410.0,1.26015015]
[1758314338582,0.0875887,115420.0,115410.0,2.04423015]
[1758314342186,0.0875887,115420.0,115410.0,1.93563984]
[1758314344487,0.0875887,115420.0,115410.0,2.04423015]
[1758314352290,0.0875887,115420.0,115410.0,1.93563984]
[1758314353794,0.0875887,115420.0,115410.0,2.0443888]
[1758314354190,0.0875887,115420.0,115410.0,1.2603088]
[1758314354390,0.0875887,115420.0,115410.0,2.0443088]
[1758314355899,0.0875887,115420.0,115410.0,1.2603088]
[1758314356099,0.0875887,115420.0,115410.0,2.0443088]
[1758314357092,0.0875887,115420.0,115410.0,1.36339516]
[1758314357294,0.0875887,115420.0,115410.0,2.0443088]
[1758314358715,0.0875887,115420.0,115410.0,1.2603088]
[1758314359011,0.0875887,115420.0,115410.0,2.0443088]
[1758314370228,0.001,115420.0,115410.0,2.0443088]
[1758314370521,0.0001,115430.0,115420.0,0.1217087]
[1758314370822,0.0866785,115440.0,115430.0,0.1093212]
[1758314371022,0.0865785,115440.0,115430.0,2.04373073]
[1758314371326,0.0865785,115440.0,115430.0,1.70327391]
[1758314372019,0.0865785,115440.0,115430.0,2.04373073]
[1758314374025,0.0905785,115440.0,115430.0,2.04373073]
[1758314375019,0.0905785,115440.0,115430.0,1.70327391]
[1758314375827,0.0925785,115440.0,115430.0,2.04373073]
[1758314376015,0.006,115440.0,115430.0,2.04373073]
[1758314376218,0.006,115440.0,115430.0,1.93499484]
[1758314376628,0.0925737,115440.0,115430.0,1.15103484]
[1758314376818,0.0925737,115440.0,115430.0,1.93495484]
[1758314377528,0.0925737,115440.0,115430.0,1.59449802]
[1758314389743,0.0925737,115440.0,115430.0,1.9347432]
[1758314392142,0.006,115440.0,115430.0,1.9347432]
[1758314392744,0.0925737,115440.0,115430.0,1.9347432]
[1758314393242,0.0925737,115440.0,115430.0,2.04347909]
[1758314394041,0.0925737,115440.0,115430.0,1.9347432]
[1758314398349,0.0925737,115440.0,115430.0,2.04347909]
[1758314399650,0.0925737,115440.0,115430.0,1.9347432]
[1758314401254,0.0925737,115440.0,115430.0,1.1508232]
[1758314401452,0.0925737,115440.0,115430.0,1.9345832]
[1758314402445,0.0925737,115440.0,115430.0,2.2953832]
[1758314406662,0.0925737,115440.0,115430.0,1.5116232]
[1758314406854,0.0925737,115440.0,115430.0,2.2953432]
[1758314409461,0.0925737,115440.0,115430.0,1.5116232]
[1758314409652,0.0925737,115440.0,115430.0,2.2953432]
[1758314413861,0.0925737,115440.0,115430.0,2.40407909]
[1758314421972,0.0925737,115440.0,115430.0,1.68247909]
[1758314422167,0.0925737,115440.0,115430.0,2.40407909]
[1758314423968,0.0925737,115440.0,115430.0,1.68247909]
[1758314424268,0.0925737,115440.0,115430.0,2.40407909]
[1758314437572,0.0925737,115440.0,115430.0,2.2953432]